bitfinex-derivatives/quotes_ETHF0:USTF0_20240920
["timestamp","ask_amount","ask_price","bid_price","bid_amount"]
[1726849636317,0.39028,2562.1,2562.0,5.114]
[1726849637401,4.68125,2562.3,2561.7,0.9747]
[1726849637607,4.68125,2562.3,2561.8,0.39032]
[1726849637813,0.39029,2562.1,2561.7,0.4809]
[1726849638004,0.39029,2562.1,2561.9,0.39031]
[1726849638401,3.7056,2562.3,2561.7,3.2109]
[1726849638627,3.7056,2562.3,2562.0,0.39029]
[1726849638628,4.09586,2562.3,2562.0,0.39029]
[1726849638815,4.09586,2562.3,2561.9,0.3903]
[1726849638816,0.39027,2562.2,2561.9,0.3903]
[1726849639010,3.7056,2562.3,2561.7,3.2109]
[1726849639204,0.39027,2562.2,2562.0,0.39029]
[1726849639409,3.7056,2562.3,2562.0,2.73]
[1726849639610,3.2078,2562.3,2562.2,3.12027]
[1726849639812,0.4889,2562.5,2562.4,0.39023]
[1726849640111,0.3902,2562.7,2562.5,0.39021]
[1726849640307,0.998,2562.8,2562.7,0.39019]
[1726849640519,3.2078,2562.9,2562.8,0.39017]
[1726849641516,1.36189,2563.4,2562.8,6.6316]
[1726849641717,0.3901,2563.3,2563.1,0.39012]
[1726849642066,0.3901,2563.3,2563.0,0.39014]
[1726849642067,0.39011,2563.2,2563.0,0.39014]
[1726849642214,0.39011,2563.2,2563.1,0.39013]
[1726849642510,3.2078,2563.3,2563.1,0.39013]
[1726849642913,0.39012,2563.2,2563.0,0.39014]
[1726849643216,3.2078,2563.3,2562.9,0.4725]
[1726849643630,3.2078,2563.3,2563.1,0.39012]
[1726849643631,3.5979,2563.3,2563.1,0.39012]
[1726849644010,3.2078,2563.3,2563.2,0.39011]
[1726849644418,3.5979,2563.3,2563.2,0.39011]
[1726849644922,3.2078,2563.3,2563.2,0.39011]
[1726849645109,3.5979,2563.3,2563.2,0.39011]
[1726849645311,3.5979,2563.3,2562.9,0.4725]
[1726849645312,3.59786,2563.6,2563.1,2.73]
[1726849645529,0.5156,2563.7,2563.1,2.73]
[1726849645821,0.39006,2563.6,2563.1,2.73]
[1726849646026,0.39007,2563.5,2563.4,0.39008]
[1726849646717,3.2078,2563.6,2563.3,0.39009]
[1726849647022,0.39008,2563.5,2563.4,0.39008]
[1726849647420,0.39008,2563.5,2563.3,0.39009]
[1726849647619,0.39011,2563.3,2563.1,0.39012]
[1726849647816,0.39011,2563.3,2563.0,3.2078]
[1726849648123,4.18295,2563.6,2563.0,3.2078]
[1726849648124,3.70519,2563.5,2563.0,3.2078]
[1726849648341,3.70519,2563.5,2562.6,5.1065]
[1726849648342,0.39018,2562.8,2562.6,4.131]
[1726849648507,0.97537,2563.0,2562.5,3.2078]
[1726849648713,0.9754,2562.9,2562.5,3.2078]
[1726849648917,0.3902,2562.7,2562.5,0.39021]
[1726849649112,0.3902,2562.7,2562.5,0.39022]
[1726849649357,4.1832,2562.9,2562.5,0.39022]
[1726849649615,0.3902,2562.7,2562.5,0.39022]
[1726849649818,0.9754,2562.9,2562.2,0.4954]
[1726849650018,0.9754,2562.9,2562.2,0.39025]
[1726849650019,0.97548,2562.7,2562.2,0.39025]
[1726849650222,0.39024,2562.4,2562.2,0.39025]
[1726849650709,0.5137,2562.5,2562.1,3.2078]
[1726849650914,0.39026,2562.3,2561.8,0.4954]
[1726849651115,0.39026,2562.3,2562.0,0.39029]
[1726849651624,2.73,2562.4,2561.6,11.06357298]
[1726849651826,0.39029,2562.1,2561.8,0.39032]
[1726849652522,0.39029,2562.1,2561.6,6.861]
[1726849652523,3.2078,2562.2,2562.0,0.39029]
[1726849652713,3.2078,2562.2,2562.1,0.39028]
[1726849652922,3.2078,2562.2,2562.0,0.39029]
[1726849653221,3.59807,2562.2,2562.0,0.39029]
[1726849653420,3.59807,2562.2,2561.9,3.1203]
[1726849654457,3.2078,2562.2,2562.1,0.39028]
[1726849654614,3.2078,2562.2,2562.0,0.39029]
[1726849655308,3.59807,2562.2,2562.0,0.39029]
[1726849655721,3.2078,2562.2,2561.9,2.73]
[1726849656019,3.2078,2562.2,2562.1,3.12028]
[1726849656323,0.39024,2562.4,2562.2,0.39025]
[1726849656624,0.39023,2562.4,2562.2,0.39026]
[1726849657415,0.39023,2562.4,2562.1,2.73]
[1726849657619,0.39023,2562.4,2562.2,0.39026]
[1726849658117,3.2078,2562.6,2562.3,2.73]
[1726849658324,0.4903,2563.1,2563.0,0.39014]
[1726849658624,4.74098907,2563.4,2563.1,0.39012]
[1726849658625,0.39011,2563.3,2563.1,0.39012]
[1726849658810,0.88041,2563.3,2563.1,0.39012]
[1726849659013,0.39011,2563.2,2563.1,0.39012]
[1726849659219,0.4903,2563.3,2562.9,0.39015]
[1726849659520,0.39016,2562.9,2562.8,3.59797]
[1726849659718,4.18311,2563.2,2562.5,3.2078]
[1726849659925,0.39017,2562.9,2562.7,0.39018]
[1726849660221,0.39015,2563.0,2562.5,3.2078]
[1726849660418,0.4903,2563.3,2562.8,2.73]
[1726849660620,0.39015,2563.0,2562.6,2.73]
[1726849660816,4.67339,2563.3,2562.6,2.73]
[1726849660817,4.67339,2563.3,2562.9,0.39015]
[1726849661216,0.39014,2563.1,2562.9,0.39015]
[1726849662023,0.39014,2563.1,2562.6,2.73]
[1726849662320,0.39014,2563.1,2562.9,0.39015]
[1726849663121,0.39014,2563.1,2562.6,2.73]
[1726849663316,0.39014,2563.1,2562.9,0.39015]
[1726849663842,0.97529,2563.2,2562.6,2.73]
[1726849664012,0.97529,2563.2,2562.9,0.39015]
[1726849664217,0.39013,2563.1,2562.9,0.39015]
[1726849664415,0.4903,2563.3,2562.9,0.9754]
[1726849664628,0.4903,2563.3,2563.2,0.39011]
[1726849665727,0.86116,2563.6,2563.2,0.97529]
[1726849665927,0.4711,2563.6,2563.5,0.39007]
[1726849666321,0.86115,2563.6,2563.5,0.39007]
[1726849667229,0.4711,2563.6,2563.3,0.39009]
[1726849667633,0.97518,2563.5,2563.3,0.3901]
[1726849667826,0.39009,2563.4,2563.3,0.3901]
[1726849668324,0.39009,2563.4,2563.0,0.5052]
[1726849668524,0.39009,2563.4,2563.3,0.3901]
[1726849669140,0.3901,2563.3,2562.7,4.131]
[1726849669324,3.2078,2563.2,2562.7,4.131]
[1726849669529,0.39017,2562.8,2562.7,4.131]
[1726849669821,0.97533,2563.1,2562.7,4.131]
[1726849670021,0.39017,2562.9,2562.7,4.131]
[1726849670221,3.59795,2563.0,2562.7,4.131]
[1726849670528,3.2078,2563.0,2562.7,4.52119]
[1726849670726,3.2078,2563.0,2562.7,4.131]
[1726849670727,3.59795,2563.0,2562.7,4.131]
[1726849670924,0.39017,2562.9,2562.7,4.131]
[1726849671121,0.4809,2562.9,2562.7,4.131]
[1726849671324,0.4809,2562.9,2562.1,8.34930743]
[1726849671325,0.5159,2562.8,2562.1,8.34930743]
[1726849671529,3.59801,2562.6,2562.3,0.39025]
[1726849671929,0.39023,2562.5,2562.1,3.59807]
[1726849672328,3.2078,2562.6,2562.1,3.59807]
[1726849672529,0.39023,2562.5,2562.1,3.59807]
[1726849673029,3.2078,2562.6,2562.1,3.59807]
[1726849673030,0.39023,2562.4,2562.1,3.59807]
[1726849673243,3.2078,2562.6,2562.1,3.2078]
[1726849673536,0.39027,2562.2,2561.8,4.52132]
[1726849673737,0.39028,2562.1,2561.8,4.52132]
[1726849673925,0.39027,2562.2,2561.8,4.131]
[1726849674127,3.707,2562.3,2561.8,4.52131]
[1726849674128,0.39028,2562.1,2561.8,4.52131]
[1726849674322,0.39028,2562.2,2561.8,4.52131]
[1726849674529,0.39028,2562.1,2561.8,4.52131]
[1726849674827,0.39027,2562.2,2561.8,4.52131]
[1726849675029,0.39028,2562.1,2561.8,4.52131]
[1726849675426,4.09726,2562.3,2561.8,4.131]
[1726849675631,4.09726,2562.3,2561.9,0.3903]
[1726849675632,0.39027,2562.2,2561.9,0.3903]
[1726849676738,0.39028,2562.1,2561.9,0.3903]
[1726849677142,0.39028,2562.1,2561.8,0.39032]
[1726849677437,3.707,2562.3,2561.8,0.39032]
[1726849677623,0.39029,2562.1,2561.8,0.39032]
[1726849678138,4.179,2562.3,2561.9,0.3903]
[1726849678347,0.39028,2562.1,2561.9,0.3903]
[1726849678634,0.39028,2562.2,2561.9,0.3903]
[1726849678837,4.179,2562.3,2561.9,0.3903]
[1726849679138,3.2078,2562.3,2562.2,0.39027]
[1726849680139,0.39021,2562.6,2562.2,3.9032]
[1726849680443,3.2078,2562.7,2562.6,0.3902]
[1726849680624,0.97538,2563.0,2562.3,1.0179]
[1726849680625,3.2078,2563.0,2562.3,1.0179]
[1726849680828,0.39017,2562.9,2562.8,0.39017]
[1726849681032,0.39017,2562.8,2562.7,0.39018]
[1726849681232,0.39017,2562.8,2562.3,6.1199]
[1726849681233,4.18318,2563.0,2562.6,0.3902]
[1726849681550,0.39018,2562.8,2562.6,0.3902]
[1726849681943,3.2078,2562.7,2562.6,0.3902]
[1726849682642,0.39019,2562.7,2562.6,0.3902]
[1726849682838,0.39019,2562.7,2562.3,7.09552]
[1726849684450,3.59798,2562.8,2562.3,7.09552]
[1726849684652,3.59798,2562.8,2562.6,0.39019]
[1726849684843,3.2078,2562.8,2562.7,0.39019]
[1726849685147,0.39017,2562.8,2562.7,0.39019]
[1726849685451,0.97537,2563.0,2562.4,0.97559]
[1726849685646,3.2078,2563.1,2562.3,7.09552]
[1726849685647,0.39016,2562.9,2562.5,0.97555]
[1726849686244,0.39015,2563.0,2562.5,0.97555]
[1726849686443,0.39015,2563.0,2562.8,0.39016]
[1726849686752,0.39016,2562.9,2562.7,0.39018]
[1726849686934,3.2078,2563.1,2562.5,0.97555]
[1726849687140,0.9868,2563.2,2563.0,0.39014]
[1726849687443,0.5048,2563.2,2563.1,0.39013]
[1726849687637,3.2078,2563.4,2563.3,0.3901]
[1726849688246,3.59788,2563.4,2563.3,0.3901]
[1726849688653,0.3901,2563.3,2563.2,0.3901]
[1726849689051,0.39009,2563.4,2563.2,0.3901]
[1726849689649,1.36586,2563.6,2563.1,0.97533]
[1726849689859,1.36586,2563.6,2563.4,0.39007]
[1726849689860,0.87006,2563.6,2563.4,0.39007]
[1726849690052,0.39007,2563.5,2563.4,0.39007]
[1726849690245,0.48,2563.6,2563.3,0.39009]
[1726849690550,0.39007,2563.5,2563.4,0.39007]
[1726849690956,0.48,2563.6,2563.5,0.39007]
[1726849691249,3.7066,2563.7,2563.6,0.39005]
[1726849691461,4.593,2564.0,2563.5,0.97516]
[1726849691641,0.5123,2564.0,2563.9,0.39001]
[1726849692042,0.5123,2564.0,2563.8,0.39001]
[1726849692347,0.9023,2564.0,2563.9,0.39001]
[1726849692540,0.9023,2564.0,2563.8,0.39001]
[1726849692959,0.9023,2564.0,2563.9,0.39001]
[1726849693152,0.9023,2564.0,2563.8,0.39001]
[1726849693367,0.9023,2564.0,2563.5,3.2078]
[1726849693368,0.39004,2563.8,2563.5,3.2078]
[1726849693657,0.39004,2563.8,2563.7,0.39004]
[1726849694258,4.6951,2564.0,2563.5,3.2078]
[1726849694556,0.39003,2563.8,2563.6,0.39004]
[1726849695255,0.39003,2563.8,2563.1,0.97533]
[1726849695256,0.39007,2563.6,2563.1,0.97533]
[1726849695469,0.97514,2563.6,2563.1,5.087]
[1726849695762,0.97525,2563.3,2563.0,3.2078]
[1726849695950,0.39013,2563.1,2563.0,3.2078]
[1726849696153,0.39013,2563.1,2562.8,5.087]
[1726849696671,0.39013,2563.1,2562.9,0.39016]
[1726849696865,0.4751,2563.2,2562.8,5.087]
[1726849697172,1.45041,2563.2,2562.8,5.47717]
[1726849697376,3.2078,2563.1,2562.8,5.47717]
[1726849697567,4.18314,2563.1,2562.5,0.5196]
[1726849697767,0.39017,2562.9,2562.3,3.6969]
[1726849697966,0.39017,2562.9,2562.7,0.39018]
[1726849698576,0.39019,2562.7,2562.5,0.39021]
[1726849698760,0.3902,2562.7,2562.5,0.39021]
[1726849699368,3.7066,2563.0,2562.3,4.2103]
[1726849699563,0.39017,2562.9,2562.7,0.39018]
[1726849700455,3.7066,2563.0,2562.8,0.39017]
[1726849700670,0.4988,2563.0,2562.4,0.97558]
[1726849700866,0.4988,2563.0,2562.9,0.39016]
[1726849702062,0.4751,2563.2,2563.1,0.39013]
[1726849702263,3.6845,2563.4,2563.3,0.3901]
[1726849702461,0.4767,2563.4,2563.3,0.3901]
[1726849703062,0.86678,2563.4,2563.3,0.3901]
[1726849703256,0.4767,2563.4,2563.3,0.3901]
[1726849703662,0.39008,2563.5,2563.4,0.39008]
[1726849703859,0.39007,2563.5,2563.4,0.39008]
[1726849704574,0.39007,2563.5,2563.0,0.97535]
[1726849704785,0.39008,2563.5,2563.4,0.39008]
[1726849706275,0.39008,2563.4,2562.9,3.2078]
[1726849706491,1.47886,2563.6,2563.2,0.3901]
[1726849706774,1.47886,2563.6,2562.8,0.97542]
[1726849706966,1.47886,2563.6,2563.3,0.39009]
[1726849707162,0.39008,2563.4,2563.3,0.39009]
[1726849708468,0.39008,2563.4,2563.2,0.39011]
[1726849708669,0.5037,2563.6,2563.0,0.97536]
[1726849708871,0.5037,2563.6,2563.5,0.39007]
[1726849709775,0.5075,2563.8,2563.7,0.39004]
[1726849709970,3.2078,2564.1,2564.0,0.38999]
[1726849711186,13.1078,2564.1,2563.4,4.131]
[1726849711472,0.39006,2563.6,2563.4,0.39007]
[1726849711694,0.39007,2563.5,2563.2,0.4601]
[1726849711869,0.86917,2563.5,2563.2,0.4601]
[1726849712069,0.86917,2563.5,2563.3,0.3901]
[1726849712267,0.86917,2563.5,2563.4,0.39008]
[1726849712667,0.86917,2563.5,2563.3,0.39009]
[1726849713067,0.86918,2563.5,2563.3,0.39009]
[1726849713572,0.4791,2563.5,2563.3,0.39009]
[1726849713783,0.86918,2563.5,2563.2,0.4601]
[1726849714269,0.4791,2563.5,2563.4,0.39008]
[1726849716179,0.86917,2563.5,2563.4,0.39008]
[1726849717077,0.4791,2563.5,2563.4,0.39008]
[1726849718568,0.4757,2563.8,2563.7,0.39004]
[1726849719999,0.4643,2564.0,2563.8,0.39001]
[1726849720284,0.39003,2563.8,2563.7,0.39004]
[1726849720666,0.39001,2563.9,2563.8,0.39002]
[1726849720872,0.4643,2564.0,2563.8,0.39002]
[1726849721073,0.39001,2563.9,2563.8,0.39001]
[1726849721267,0.4643,2564.0,2563.9,0.39001]
[1726849721677,0.39002,2563.8,2563.7,0.85463]
[1726849721875,0.4643,2564.0,2563.8,0.39002]
[1726849721876,0.39002,2563.9,2563.8,0.39002]
[1726849722074,0.4643,2564.0,2563.8,0.39002]
[1726849722276,0.39001,2563.9,2563.8,0.39001]
[1726849722777,0.4643,2564.0,2563.9,0.39001]
[1726849722979,0.85429,2564.0,2563.9,0.39001]
[1726849723276,0.39001,2563.9,2563.8,0.39001]
[1726849724979,0.8543,2564.0,2563.9,0.39001]
[1726849725205,0.39001,2563.9,2563.8,0.39001]
[1726849726578,1.52810425,2564.5,2563.9,0.97502]
[1726849726777,0.38994,2564.4,2564.3,0.38994]
[1726849727284,0.38989,2564.7,2564.5,0.38992]
[1726849727480,0.38989,2564.7,2564.2,0.97491]
[1726849727481,3.6653,2564.9,2564.8,1.36455]
[1726849727679,4.05516,2564.9,2564.5,0.38992]
[1726849727884,4.05516,2564.9,2564.5,0.4913]
[1726849728485,3.6653,2564.9,2564.8,0.38987]
[1726849729487,4.05516,2564.9,2564.7,0.38988]
[1726849729878,3.6653,2564.9,2564.8,0.38987]
[1726849730286,7.5645,2564.9,2564.5,0.4913]
[1726849730478,3.6653,2564.9,2564.5,0.4913]
[1726849730679,4.63997,2564.9,2564.2,5.071]
[1726849730881,4.63997,2564.9,2564.1,1.01050743]
[1726849730882,0.97468,2564.8,2564.1,1.01050743]
[1726849731180,0.38992,2564.5,2564.0,3.697]
[1726849731492,3.2078,2564.6,2564.1,0.97495]
[1726849731787,3.2078,2564.6,2564.5,0.38992]
[1726849732289,0.84736,2564.9,2564.6,0.38988]
[1726849732491,0.38987,2564.8,2564.6,0.38988]
[1726849732685,0.84736,2564.9,2564.7,0.38988]
[1726849732898,0.38987,2564.8,2564.7,0.38988]
[1726849733183,0.84736,2564.9,2564.7,0.38988]
[1726849733581,0.4575,2564.9,2564.4,0.38993]
[1726849733779,0.84736,2564.9,2564.7,0.38988]
[1726849733991,3.2078,2565.0,2564.9,0.38985]
[1726849734177,3.59764,2565.0,2564.6,5.071]
[1726849734382,3.59764,2565.0,2564.6,5.46089]
[1726849734383,3.2078,2565.0,2564.6,5.46089]
[1726849734583,3.2078,2565.0,2564.7,0.38988]
[1726849734584,0.38987,2564.9,2564.7,0.38988]
[1726849734779,0.38987,2564.8,2564.6,5.46089]
[1726849734978,0.38987,2564.8,2564.7,0.38988]
[1726849735175,0.38986,2564.9,2564.7,0.38988]
[1726849735387,0.38987,2564.8,2564.7,0.38988]
[1726849735585,0.38987,2564.9,2564.7,0.38988]
[1726849735786,4.18241,2565.0,2564.7,0.38988]
[1726849735987,0.38987,2564.8,2564.7,0.38988]
[1726849736185,4.18241,2565.0,2564.6,5.071]
[1726849736186,3.59765,2565.0,2564.6,5.071]
[1726849736612,3.59765,2565.0,2564.8,0.38986]
[1726849736613,0.38985,2564.9,2564.8,0.38986]
[1726849737183,3.59765,2565.0,2564.6,5.071]
[1726849737383,3.2078,2565.0,2564.8,0.38986]
[1726849737587,0.38985,2564.9,2564.8,0.38986]
[1726849739288,0.38987,2564.8,2564.7,0.38987]
[1726849739490,0.84098,2564.8,2564.6,0.38989]
[1726849739719,0.84098,2564.8,2564.4,5.07]
[1726849739720,0.4502,2564.7,2564.4,5.07]
[1726849739891,0.84009,2564.7,2564.4,5.07]
[1726849740284,0.4502,2564.7,2564.6,0.3899]
[1726849741798,0.4511,2564.8,2564.6,0.3899]
[1726849741989,0.4511,2564.8,2564.5,0.97479]
[1726849741990,0.4511,2564.8,2564.7,0.38988]
[1726849742494,3.651,2565.0,2564.9,0.38985]
[1726849742691,3.651,2565.0,2564.6,1.41655]
[1726849742898,4.04085,2565.0,2564.9,0.38985]
[1726849744003,3.651,2565.0,2564.9,0.38985]
[1726849744195,3.2078,2565.0,2564.9,0.38985]
[1726849745003,3.2078,2565.0,2564.8,0.38986]
[1726849745496,3.59765,2565.0,2564.8,5.07]
[1726849746299,0.38986,2564.9,2564.6,0.38989]
[1726849746490,0.4421,2564.8,2564.6,0.38989]
[1726849747100,0.4421,2564.8,2564.7,0.38988]
[1726849747495,0.4421,2564.8,2564.5,5.07]
[1726849747496,0.4421,2564.8,2564.6,0.38989]
[1726849748126,0.4421,2564.8,2564.5,5.45991]
[1726849748295,0.4421,2564.8,2564.6,0.38989]
[1726849748800,0.4421,2564.8,2564.7,0.38988]
[1726849749000,0.4421,2564.8,2564.6,0.38989]
[1726849751091,0.83198,2564.8,2564.6,0.38989]
[1726849751288,0.4421,2564.8,2564.6,0.38989]
[1726849751491,0.4421,2564.8,2564.7,0.38988]
[1726849751706,0.83197,2564.8,2564.6,0.38989]
[1726849752387,0.4421,2564.8,2564.5,7.81]
[1726849752590,0.38996,2564.2,2564.1,4.131]
[1726849752899,9.847,2564.7,2563.8,7.96950743]
[1726849752900,0.38998,2564.1,2563.8,2.74]
[1726849753096,0.38998,2564.1,2563.9,0.39]
[1726849753321,0.85579,2564.0,2563.6,2.74]
[1726849753603,0.8558,2564.0,2563.8,0.39001]
[1726849754101,0.4658,2564.0,2563.9,0.39001]
[1726849754901,0.4658,2564.0,2563.6,2.74]
[1726849755104,0.39002,2563.9,2563.7,0.39003]
[1726849756201,0.39001,2563.9,2563.6,7.795]
[1726849756411,0.39003,2563.8,2563.6,3.13004]
[1726849756595,0.39003,2563.8,2563.6,5.44504]
[1726849756803,4.6486,2564.0,2563.7,0.39004]
[1726849757102,0.39002,2563.8,2563.7,0.39004]
[1726849757500,0.39001,2563.9,2563.7,0.39004]
[1726849757694,0.39002,2563.8,2563.7,0.39004]
[1726849759206,0.39004,2563.7,2563.6,3.13004]
[1726849759506,1.36519,2563.6,2563.5,4.131]
[1726849759809,0.39009,2563.4,2563.3,0.39009]
[1726849760104,0.85058,2563.5,2563.3,0.39009]
[1726849760309,0.85058,2563.5,2563.4,3.13008]
[1726849760310,0.4605,2563.5,2563.4,3.13008]
[1726849761104,0.85057,2563.5,2563.4,2.74]
[1726849761602,3.2078,2563.7,2563.4,2.74]
[1726849761815,0.97506,2563.8,2563.5,0.39006]
[1726849762002,0.39006,2563.6,2563.5,0.39006]
[1726849762300,0.97506,2563.8,2563.5,0.39006]
[1726849762504,0.8839,2563.9,2563.4,2.74]
[1726849762708,0.8839,2563.9,2563.7,0.39003]
[1726849762998,0.8839,2563.9,2563.6,2.74]
[1726849762999,1.27392,2563.9,2563.6,2.74]
[1726849763207,0.8839,2563.9,2563.8,0.39002]
[1726849763603,0.8839,2563.9,2563.6,2.74]
[1726849763604,4.7839,2563.9,2563.7,0.39003]
[1726849763810,1.27392,2563.9,2563.6,2.74]
[1726849764103,0.39004,2563.7,2563.6,2.74]
[1726849764309,0.39003,2563.8,2563.7,0.39003]
[1726849764806,0.39005,2563.7,2563.6,0.39004]
[1726849765013,0.39006,2563.6,2563.5,0.39006]
[1726849765211,0.39006,2563.6,2563.5,0.39007]
[1726849765999,0.39008,2563.5,2563.4,0.39008]
[1726849766596,0.39006,2563.6,2563.5,0.39007]
[1726849767399,3.2078,2563.7,2563.2,5.9478]
[1726849767606,0.39007,2563.5,2563.4,0.39007]
[1726849767812,0.39006,2563.6,2563.5,0.39006]
[1726849768405,0.39007,2563.5,2563.4,0.39007]
[1726849769697,0.39006,2563.6,2563.5,0.39006]
[1726849770302,0.39006,2563.6,2563.2,5.9478]
[1726849770506,0.39007,2563.5,2563.4,0.39007]
[1726849770699,0.39006,2563.6,2563.5,0.39006]
[1726849770909,3.59784,2563.7,2563.6,0.39005]
[1726849771699,0.39003,2563.8,2563.7,0.39004]
[1726849772009,0.39003,2563.8,2563.7,0.39003]
[1726849772397,1.27391,2563.9,2563.8,0.39002]
[1726849772601,0.4658,2564.0,2563.9,0.39001]
[1726849772807,0.97484,2564.4,2564.1,0.38998]
[1726849772808,0.38997,2564.2,2564.1,0.38998]
[1726849773512,0.8604,2564.3,2563.8,8.77205]
[1726849773715,0.8604,2564.3,2564.2,0.38996]
[1726849774018,0.97471,2564.8,2564.4,0.38992]
[1726849774212,0.38992,2564.5,2564.4,0.38992]
[1726849774421,0.8665,2564.7,2564.4,0.38992]
[1726849774608,0.38991,2564.6,2564.4,0.38992]
[1726849774814,0.38992,2564.5,2564.4,0.38992]
[1726849775321,0.8665,2564.7,2564.4,0.38992]
[1726849775508,0.8665,2564.7,2564.2,3.1921]
[1726849775509,0.38992,2564.5,2564.3,0.38993]
[1726849775917,0.8665,2564.7,2564.3,0.38993]
[1726849775918,0.38993,2564.4,2564.3,0.38993]
[1726849776108,3.2078,2564.6,2564.2,0.84206]
[1726849776109,0.38995,2564.3,2564.2,0.84206]
[1726849776305,0.97481,2564.5,2564.1,5.057]
[1726849776507,0.38996,2564.3,2564.1,0.38997]
[1726849776710,0.38996,2564.2,2564.1,0.38997]
[1726849777105,0.38998,2564.1,2563.9,0.39001]
[1726849777311,0.38999,2564.0,2563.9,0.39]
[1726849778120,0.38999,2564.0,2563.6,8.2648]
[1726849778313,0.39003,2563.8,2563.7,0.39003]
[1726849778514,0.39001,2563.9,2563.8,0.39002]
[1726849778717,0.39001,2563.9,2563.6,5.057]
[1726849779012,0.39001,2563.9,2563.8,0.39002]
[1726849779407,0.39,2564.0,2563.8,0.39002]
[1726849779610,0.39004,2563.7,2563.6,5.057]
[1726849780112,3.2078,2564.0,2563.6,5.44705]
[1726849780113,0.39003,2563.8,2563.6,5.44705]
[1726849780307,0.39003,2563.8,2563.7,0.39004]
[1726849780503,0.39003,2563.8,2563.6,5.057]
[1726849780709,0.39003,2563.8,2563.6,5.44704]
[1726849786712,0.39004,2563.7,2563.6,5.44704]
[1726849787651,0.39003,2563.8,2563.7,0.39004]
[1726849787917,0.39002,2563.8,2563.7,0.39003]
[1726849788130,0.39004,2563.7,2563.6,5.44704]
[1726849788616,3.59781,2564.0,2563.6,11.6978]
[1726849788825,0.39001,2563.9,2563.6,11.0048]
[1726849789023,1.87706,2564.1,2563.8,0.39001]
[1726849789228,0.39001,2563.9,2563.8,0.39001]
[1726849789610,0.39,2564.0,2563.9,0.39001]
[1726849789821,0.9021,2564.1,2563.6,11.97993]
[1726849790026,0.9021,2564.1,2563.7,0.4424]
[1726849790227,0.9021,2564.1,2563.7,1.41749]
[1726849790411,0.38996,2564.2,2563.9,2.74]
[1726849790611,3.59776,2564.3,2564.1,0.38997]
[1726849790828,0.38996,2564.2,2564.1,0.38998]
[1726849792014,0.38996,2564.2,2563.9,2.74]
[1726849792015,3.59776,2564.3,2563.9,2.74]
[1726849792223,3.2078,2564.3,2564.2,0.38996]
[1726849794030,0.4152,2564.4,2564.1,0.38996]
[1726849794219,0.38996,2564.3,2564.2,0.38995]
[1726849794421,0.4152,2564.4,2563.9,3.75050743]
[1726849794625,0.38997,2564.2,2564.1,0.38997]
[1726849795425,0.38996,2564.3,2564.2,0.38995]
[1726849795621,0.38997,2564.2,2564.1,0.38996]
[1726849797828,0.38999,2564.1,2564.0,0.38998]
[1726849798022,0.38997,2564.2,2563.9,4.21830743]
[1726849798224,0.38997,2564.2,2564.1,0.38996]
[1726849799924,0.38995,2564.3,2564.2,0.38995]
[1726849800123,0.38998,2564.2,2564.0,1.01050743]
[1726849800325,0.38999,2564.0,2563.9,1.01050743]
[1726849800518,0.38999,2564.0,2563.7,1.01050743]
[1726849800519,0.39002,2563.8,2563.7,1.01050743]
[1726849800718,0.39004,2563.7,2563.6,5.14150743]
[1726849800925,1.80294,2563.7,2563.6,4.131]
[1726849801229,8.91154,2563.7,2563.6,4.131]
[1726849801532,9.07450425,2563.7,2563.1,6.05250743]
[1726849801730,3.2078,2563.7,2563.6,2.74]
[1726849801931,3.2078,2563.7,2563.6,3.13005]
[1726849802424,0.4243,2563.9,2563.8,0.39002]
[1726849802630,1.96590425,2564.3,2564.0,0.38998]
[1726849802833,1.96590425,2564.3,2564.2,0.38996]
[1726849802834,0.4378,2564.3,2564.2,0.38996]
[1726849803023,3.2078,2564.3,2564.2,0.38996]
[1726849803232,0.38995,2564.3,2564.1,0.38997]
[1726849803422,0.38998,2564.1,2563.9,0.39]
[1726849803836,0.38998,2564.1,2563.7,4.21830743]
[1726849803837,0.39001,2563.9,2563.8,1.01050743]
[1726849804141,0.4292,2564.1,2563.7,3.2078]
[1726849804338,0.39001,2563.9,2563.7,3.59783]
[1726849804530,0.39001,2563.9,2563.7,3.59784]
[1726849805233,0.39002,2563.8,2563.6,0.39004]
[1726849805543,0.39002,2563.9,2563.6,1.40054743]
[1726849806134,0.39002,2563.9,2563.7,0.39003]
[1726849806345,3.2078,2564.0,2563.9,0.39001]
[1726849806632,0.432,2564.2,2564.1,0.38998]
[1726849807223,0.432,2564.2,2564.0,0.82759]
[1726849807427,4.02977,2564.2,2564.0,0.38998]
[1726849807635,3.6398,2564.2,2564.1,0.38998]
[1726849808029,4.02976,2564.2,2564.1,0.38998]
[1726849808534,3.6398,2564.2,2564.1,0.38998]
[1726849809130,0.4292,2564.4,2564.3,0.38995]
[1726849809330,0.81913,2564.4,2564.3,0.38995]
[1726849809732,0.81913,2564.4,2564.0,2.43327743]
[1726849809940,0.81913,2564.4,2564.3,0.38995]
[1726849810128,3.2078,2564.6,2564.5,0.38992]
[1726849810340,0.4079,2565.0,2564.9,0.38985]
[1726849810631,0.79774,2565.0,2564.9,0.38985]
[1726849810827,0.4079,2565.0,2564.9,0.38985]
[1726849811738,2.54684043,2565.1,2564.9,3.8984]